bitfinex/quotes_BTCUSD_20240818
["timestamp","ask_amount","ask_price","bid_price","bid_amount"]
[1723949069762,0.050145,59826.0,59822.0,0.04921623]
[1723949070324,0.050145,59826.0,59822.0,0.06221623]
[1723949070778,0.100287,59828.0,59823.0,0.014]
[1723949070942,0.050145,59826.0,59823.0,0.014]
[1723949071161,0.050145,59826.0,59822.0,0.013]
[1723949071503,0.050145,59826.0,59822.0,0.027]
[1723949071619,0.050145,59826.0,59822.0,0.013]
[1723949071826,0.050145,59826.0,59821.0,0.01738304]
[1723949072318,0.100287,59828.0,59821.0,0.01738304]
[1723949072319,0.100287,59828.0,59823.0,0.01]
[1723949072689,0.100287,59828.0,59821.0,0.01738304]
[1723949072918,0.050146,59825.0,59822.0,0.0467533]
[1723949073247,0.050146,59825.0,59823.0,0.014]
[1723949073525,0.100287,59828.0,59818.0,0.4009053]
[1723949073726,0.03,59826.0,59818.0,0.4009053]
[1723949073903,0.03,59826.0,59818.0,0.0009053]
[1723949073904,0.150453,59819.0,59818.0,0.0009053]
[1723949074507,0.250755,59819.0,59818.0,0.0009053]
[1723949075088,0.100302,59819.0,59818.0,0.0149053]
[1723949075324,0.150453,59819.0,59818.0,0.0149053]
[1723949075550,0.51920012,59819.0,59818.0,0.0149053]
[1723949076284,0.51920012,59819.0,59818.0,0.0099053]
[1723949076564,0.61950212,59819.0,59818.0,0.0099053]
[1723949076772,0.51920012,59819.0,59818.0,0.0009053]
[1723949076971,0.61950212,59819.0,59818.0,0.0149053]
[1723949077193,0.61950212,59819.0,59818.0,0.0239053]
[1723949078009,0.61950212,59819.0,59818.0,0.0099053]
[1723949078387,0.51920012,59819.0,59818.0,0.0229053]
[1723949078834,0.51920012,59819.0,59818.0,0.0139053]
[1723949078835,0.61950212,59819.0,59818.0,0.0139053]
[1723949079252,0.51920012,59819.0,59818.0,0.0189053]
[1723949079701,0.61950212,59819.0,59818.0,0.0009053]
[1723949079927,0.61950212,59819.0,59818.0,0.0119053]
[1723949080362,0.61950212,59819.0,59818.0,0.0009053]
[1723949080570,0.61950212,59819.0,59818.0,0.0029053]
[1723949081630,0.62050212,59819.0,59818.0,0.0029053]
[1723949082039,0.68755233,59819.0,59818.0,0.0009053]
[1723949082271,0.62250212,59819.0,59818.0,0.0009053]
[1723949082484,0.61950212,59819.0,59818.0,0.0019053]
[1723949083149,0.61950212,59819.0,59800.0,0.050166]
[1723949083150,0.050162,59806.0,59800.0,0.050166]
[1723949083366,0.050162,59806.0,59801.0,0.05133506]
[1723949083578,0.050162,59806.0,59801.0,0.05575073]
[1723949083784,0.050162,59806.0,59800.0,0.050166]
[1723949084423,0.174,59805.0,59795.0,0.4]
[1723949084626,0.050165,59802.0,59795.0,0.4]
[1723949084865,0.050165,59802.0,59796.0,0.1002047]
[1723949085105,0.174,59805.0,59794.0,0.050171]
[1723949085106,0.050166,59801.0,59794.0,0.050171]
[1723949085332,0.050167,59800.0,59794.0,0.0730826]
[1723949086504,0.050167,59800.0,59796.0,0.014]
[1723949086911,0.050167,59800.0,59795.0,0.014]
[1723949087936,0.100329,59803.0,59791.0,0.128774]
[1723949087937,0.050169,59798.0,59791.0,0.128774]
[1723949088147,0.1085574,59803.0,59794.0,0.014]
[1723949088357,0.1085574,59803.0,59791.0,0.1415125]
[1723949088358,0.05017,59797.0,59791.0,0.1415125]
[1723949088574,0.05017,59796.0,59792.0,0.06418635]
[1723949088785,0.05017,59796.0,59795.0,0.014]
[1723949090067,0.050171,59795.0,59792.0,0.014]
[1723949090277,0.050173,59793.0,59792.0,0.014]
[1723949090460,0.050174,59792.0,59786.0,0.127378]
[1723949090712,0.050174,59792.0,59787.0,0.023]
[1723949091124,0.07918281,59799.0,59786.0,0.0772]
[1723949091337,0.050175,59791.0,59786.0,0.0772]
[1723949091546,0.0619,59791.0,59780.0,0.0603]
[1723949091764,0.100351,59790.0,59781.0,0.1002]
[1723949091976,0.100353,59789.0,59781.0,0.150382]
[1723949092185,0.050177,59788.0,59782.0,0.050181]
[1723949092603,0.050177,59788.0,59782.0,0.045181]
[1723949093019,0.050178,59787.0,59781.0,0.1524581]
[1723949093228,0.050179,59785.0,59781.0,0.0772]
[1723949093434,0.05018,59785.0,59781.0,0.0772]
[1723949093639,0.0619,59791.0,59782.0,0.064181]
[1723949093891,0.0619,59791.0,59783.0,0.124537]
[1723949094135,0.14947853,59793.0,59785.0,0.050179]
[1723949094338,0.050175,59791.0,59784.0,0.05018]
[1723949094513,0.04913253,59793.0,59785.0,0.0227744]
[1723949094745,0.100347,59792.0,59785.0,0.0227744]
[1723949094947,0.04913253,59793.0,59788.0,0.050177]
[1723949095158,0.04913253,59793.0,59784.0,0.100361]
[1723949095159,0.04854891,59793.0,59789.0,0.050176]
[1723949095382,0.11207,59796.0,59787.0,0.050177]
[1723949095383,0.050172,59794.0,59787.0,0.050177]
[1723949095585,0.050172,59794.0,59787.0,0.0616125]
[1723949095793,0.0619,59796.0,59787.0,0.0616125]
[1723949095794,0.050173,59793.0,59787.0,0.0616125]
[1723949096383,0.050173,59793.0,59788.0,0.014]
[1723949096829,0.050173,59793.0,59787.0,0.050177]
[1723949097005,0.050173,59793.0,59786.0,0.050178]
[1723949097211,0.051173,59793.0,59787.0,0.014]
[1723949097633,0.050174,59792.0,59787.0,0.014]
[1723949097987,0.050174,59792.0,59788.0,0.014]
[1723949098163,0.050174,59792.0,59787.0,0.014]
[1723949098368,0.050174,59792.0,59787.0,0.028]
[1723949098767,0.050177,59788.0,59787.0,0.028]
[1723949098975,0.050177,59788.0,59787.0,0.014]
[1723949099523,0.050177,59788.0,59786.0,0.014]
[1723949099524,0.150534,59787.0,59786.0,0.014]
[1723949099727,0.150534,59787.0,59783.0,0.5]
[1723949099728,0.05018,59784.0,59783.0,0.5]
[1723949101219,0.05018,59784.0,59783.0,0.514]
[1723949101618,0.05118,59784.0,59783.0,0.528]
[1723949102232,0.001,59784.0,59783.0,0.528]
[1723949103859,0.001,59784.0,59783.0,1.27985984]
[1723949104061,0.001,59784.0,59783.0,1.40522872]
[1723949104350,0.0619,59810.0,59798.0,0.050168]
[1723949104351,0.050163,59804.0,59798.0,0.050168]
[1723949104609,0.1110935,59810.0,59799.0,0.150504]
[1723949104775,0.1110935,59810.0,59799.0,0.0044929]
[1723949104776,0.050164,59804.0,59799.0,0.0044929]
[1723949104997,0.050164,59803.0,59799.0,0.0044929]
[1723949105185,0.050164,59803.0,59797.0,0.0772]
[1723949105186,0.050164,59803.0,59797.0,0.127369]
[1723949105404,0.050163,59805.0,59799.0,0.0546609]
[1723949105645,0.100323,59807.0,59797.0,0.0772]
[1723949105646,0.050164,59804.0,59798.0,0.06166092]
[1723949105850,0.1110935,59810.0,59799.0,0.0546609]
[1723949105970,0.1110935,59810.0,59799.0,0.17891719]
[1723949106433,0.05016,59809.0,59799.0,0.17891719]
[1723949106863,0.05016,59809.0,59799.0,0.18991719]
[1723949106996,0.1495105,59810.0,59799.0,0.18991719]
[1723949107200,0.1495105,59810.0,59799.0,0.17891719]
[1723949107398,0.1495105,59810.0,59799.0,0.1659969]
[1723949107627,0.05016,59808.0,59799.0,0.1659969]
[1723949107824,0.05016,59808.0,59799.0,0.1549969]
[1723949108034,0.05016,59808.0,59799.0,0.1689969]
[1723949108228,0.05016,59808.0,59799.0,1.4042719]
[1723949108849,0.1996695,59810.0,59799.0,1.4042719]
[1723949109033,0.0993525,59810.0,59799.0,1.4042719]
[1723949109263,0.0993525,59810.0,59799.0,1.4342719]
[1723949109483,0.0993525,59810.0,59799.0,1.5346079]
[1723949110019,0.0993525,59810.0,59799.0,1.4272719]
[1723949110463,0.0993525,59810.0,59799.0,1.4412719]
[1723949110670,0.0491935,59810.0,59799.0,1.4412719]
[1723949110816,0.0491935,59810.0,59799.0,1.5416079]
[1723949110817,0.0993525,59810.0,59799.0,1.5416079]
[1723949111220,0.050159,59809.0,59799.0,1.4412719]
[1723949113254,0.1495105,59810.0,59799.0,1.3179359]
[1723949113455,0.050162,59806.0,59799.0,1.3179359]
[1723949113680,0.050163,59805.0,59799.0,1.3179359]
[1723949114672,0.050164,59804.0,59799.0,1.2677679]
[1723949115029,0.050164,59804.0,59799.0,1.3179359]
[1723949116474,0.1495105,59810.0,59799.0,1.42816102]
[1723949116684,0.050162,59806.0,59799.0,1.42816102]
[1723949117972,0.050162,59806.0,59799.0,1.3179359]
[1723949118181,0.050163,59805.0,59799.0,1.3179359]
[1723949119306,0.050164,59804.0,59799.0,1.3179359]
[1723949120589,0.050164,59804.0,59799.0,1.313443]
[1723949120866,0.100324,59806.0,59799.0,1.313443]
[1723949121827,0.050163,59805.0,59799.0,1.313443]
[1723949123344,0.0771,59807.0,59799.0,1.313443]
[1723949123575,0.050162,59806.0,59799.0,1.313443]
[1723949124037,0.0771,59807.0,59799.0,1.313443]
[1723949124038,0.050163,59805.0,59799.0,1.313443]
[1723949126424,0.050163,59804.0,59799.0,1.313443]
[1723949126838,0.050164,59803.0,59799.0,1.263275]
[1723949127033,0.1404,59801.0,59799.0,1.263275]
[1723949127211,0.05099,59800.0,59799.0,1.263275]
[1723949131036,0.000823,59800.0,59799.0,1.263275]
[1723949134050,0.000823,59800.0,59799.0,1.4523376]
[1723949134246,0.000823,59800.0,59799.0,1.7849736]
[1723949134448,0.000823,59800.0,59799.0,1.9083096]
[1723949136301,0.000823,59800.0,59799.0,1.769415]
[1723949137082,0.000823,59800.0,59799.0,1.669079]
[1723949137280,0.000823,59800.0,59799.0,1.336443]
[1723949137482,0.000823,59800.0,59799.0,1.313443]
[1723949137688,0.000823,59800.0,59799.0,1.263275]
[1723949138475,0.0692209,59800.0,59799.0,1.263275]
[1723949139042,0.1945879,59800.0,59799.0,1.263275]
[1723949139200,0.2597879,59800.0,59799.0,1.263275]
[1723949140687,0.1845879,59800.0,59799.0,1.263275]
[1723949145008,0.1344209,59800.0,59799.0,1.263275]
[1723949145349,0.1845879,59800.0,59799.0,1.263275]
[1723949150073,0.2849219,59800.0,59799.0,1.263275]
[1723949151148,0.2849219,59800.0,59799.0,0.028]
[1723949151149,0.56866374,59800.0,59799.0,0.028]
[1723949152182,0.66899774,59800.0,59799.0,0.028]
[1723949153362,0.66899774,59800.0,59799.0,0.014]
[1723949153572,0.66899774,59800.0,59799.0,0.007]
[1723949153767,0.66899774,59800.0,59799.0,0.017]
[1723949154921,0.66899774,59800.0,59799.0,0.01]
[1723949155117,0.66899774,59800.0,59799.0,0.017]
[1723949158682,0.29279574,59800.0,59799.0,0.017]
[1723949158887,0.24262874,59800.0,59799.0,0.017]
[1723949159100,0.22759574,59800.0,59799.0,0.017]
[1723949159851,0.0692209,59800.0,59799.0,0.02678]
[1723949160076,0.0692209,59800.0,59799.0,0.157748]
[1723949160285,0.0692209,59800.0,59799.0,0.258084]
[1723949160539,0.0692209,59800.0,59799.0,0.550684]
[1723949160740,0.000823,59800.0,59799.0,0.550684]
[1723949160972,0.000823,59800.0,59799.0,1.986631]
[1723949161169,0.000823,59800.0,59799.0,1.976631]
[1723949161387,0.000823,59800.0,59799.0,2.03638699]
[1723949161733,0.000823,59800.0,59799.0,2.379631]
[1723949162044,0.000823,59800.0,59799.0,2.4363766]
[1723949162338,0.000823,59800.0,59799.0,2.4293766]
[1723949162729,0.000823,59800.0,59799.0,2.4333766]
[1723949163162,0.000823,59800.0,59799.0,2.4473766]
[1723949163361,0.000823,59800.0,59799.0,2.397631]
[1723949163685,0.000823,59800.0,59799.0,2.44735835]
[1723949164105,0.000823,59800.0,59799.0,2.47035835]
[1723949164724,0.000823,59800.0,59799.0,2.45635835]
[1723949165126,0.000823,59800.0,59799.0,2.47035835]
[1723949165538,0.000823,59800.0,59799.0,2.406631]
[1723949165764,0.000823,59800.0,59799.0,2.392631]
[1723949165938,0.000823,59800.0,59799.0,2.45635019]
[1723949166141,0.000823,59800.0,59799.0,2.47035019]
[1723949166357,0.000823,59800.0,59799.0,2.45635019]
[1723949166565,0.000823,59800.0,59799.0,2.47035019]
[1723949167443,0.000823,59800.0,59799.0,2.420631]
[1723949167963,0.000823,59800.0,59799.0,2.59318554]
[1723949168364,0.000823,59800.0,59799.0,2.64287869]
[1723949168586,0.000823,59800.0,59799.0,2.64487869]
[1723949168886,0.000823,59800.0,59799.0,2.64187869]
[1723949169688,0.000823,59800.0,59799.0,2.64287869]
[1723949169888,0.000823,59800.0,59799.0,2.64487869]
[1723949170626,0.000823,59800.0,59799.0,2.59518554]
[1723949170817,0.0496692,59816.0,59813.0,0.0832]
[1723949170979,0.0496692,59816.0,59815.0,0.250772]
[1723949171186,0.0604,59823.0,59814.0,1.299752]
[1723949171620,0.0604,59823.0,59818.0,0.100303]
[1723949171832,0.0604,59823.0,59820.0,0.05015]
[1723949172036,0.000823,59826.0,59825.0,0.150438]
[1723949172234,0.000823,59826.0,59825.0,1.38489]
[1723949173630,0.000823,59826.0,59825.0,1.485182]
[1723949173950,0.000823,59826.0,59825.0,1.591382]
[1723949174126,0.000823,59826.0,59825.0,1.600382]
[1723949175037,0.000823,59826.0,59825.0,1.606382]
[1723949175249,0.000823,59826.0,59825.0,1.597382]
[1723949175436,0.000823,59826.0,59825.0,1.591382]
[1723949175590,0.000823,59826.0,59825.0,1.605382]
[1723949175805,0.000823,59826.0,59825.0,1.617382]
[1723949176924,0.000823,59826.0,59825.0,2.017382]
[1723949187885,0.000823,59826.0,59825.0,2.110182]
[1723949191726,0.000823,59826.0,59825.0,2.54612054]
[1723949191930,0.02522015,59837.0,59836.0,0.483285]
[1723949192151,0.02522015,59837.0,59836.0,0.77811354]
[1723949192349,0.00823,59838.0,59837.0,0.150408]
[1723949192547,0.00823,59838.0,59837.0,1.71975449]
[1723949193224,0.00823,59838.0,59837.0,1.82002649]
[1723949193848,0.00823,59838.0,59837.0,2.06247195]
[1723949195501,0.00823,59838.0,59837.0,2.07647195]
[1723949196147,0.00823,59838.0,59837.0,1.97528]
[1723949197352,0.00823,59838.0,59837.0,1.875008]
[1723949197554,0.00823,59838.0,59837.0,1.8759144]
[1723949198011,0.00823,59838.0,59837.0,1.9761864]
[1723949198213,0.00823,59838.0,59837.0,1.8759144]
[1723949198555,0.00823,59838.0,59837.0,1.7526424]
[1723949198921,0.00823,59838.0,59837.0,1.4529144]
[1723949199800,0.00823,59838.0,59837.0,1.3526424]
[1723949201206,0.00823,59838.0,59837.0,1.4529144]
[1723949201787,0.00823,59838.0,59837.0,1.3526424]
[1723949203256,0.00823,59838.0,59837.0,0.73391877]
[1723949203761,0.00823,59838.0,59837.0,1.16887226]
[1723949203984,1e-08,59838.0,59837.0,1.16887226]
[1723949204271,1e-08,59838.0,59837.0,1.15487226]
[1723949204522,1e-08,59838.0,59837.0,1.13391877]
[1723949205005,1e-08,59838.0,59837.0,1.11991877]
[1723949205202,1e-08,59838.0,59837.0,1.13391877]
[1723949205627,1e-08,59838.0,59837.0,1.11991877]
[1723949205821,1e-08,59838.0,59837.0,1.10591877]
[1723949206011,1e-08,59838.0,59837.0,1.11991877]
[1723949206219,1e-08,59838.0,59837.0,1.13391877]
[1723949206418,1e-08,59838.0,59837.0,1.11991877]
[1723949206627,1e-08,59838.0,59837.0,1.13291877]
[1723949206863,1e-08,59838.0,59837.0,1.07271877]
[1723949207821,1e-08,59838.0,59837.0,1.07271843]
[1723949208282,1e-08,59838.0,59837.0,1.05181294]
[1723949208483,1e-08,59838.0,59837.0,0.7025864]
[1723949208606,1e-08,59838.0,59837.0,0.1793144]
[1723949209788,1e-08,59838.0,59837.0,0.0289064]
[1723949209986,0.08200001,59838.0,59837.0,0.0289064]
[1723949210186,0.08200001,59838.0,59837.0,0.1793144]
[1723949210187,1e-08,59838.0,59837.0,0.1793144]
[1723949210958,1e-08,59838.0,59837.0,0.1653144]
[1723949211354,1e-08,59838.0,59837.0,0.1783144]
[1723949211816,1e-08,59838.0,59837.0,0.5653144]
[1723949212022,1e-08,59838.0,59837.0,0.5643144]
[1723949212419,1e-08,59838.0,59837.0,0.5783144]
[1723949213392,1e-08,59838.0,59837.0,0.5643144]
[1723949213591,1e-08,59838.0,59837.0,0.5783144]
[1723949214626,1e-08,59838.0,59837.0,0.0780424]
[1723949215045,0.08200001,59838.0,59837.0,0.0279064]
[1723949215661,0.29720501,59838.0,59837.0,0.0279064]
[1723949216328,0.19693501,59838.0,59837.0,0.0279064]
[1723949216455,0.19693501,59838.0,59837.0,0.0139064]
[1723949216662,0.19693501,59838.0,59837.0,0.0279064]
[1723949216855,0.19693501,59838.0,59837.0,0.0139064]
[1723949217104,0.19693501,59838.0,59837.0,0.0009064]
[1723949217280,0.19693501,59838.0,59837.0,0.0149064]
[1723949217483,0.19693501,59838.0,59837.0,0.0279064]
[1723949217897,0.14680001,59838.0,59837.0,0.0149064]
[1723949218059,0.19693501,59838.0,59837.0,0.0149064]
[1723949218461,0.19693501,59838.0,59837.0,0.0279064]
[1723949218462,0.14680001,59838.0,59837.0,0.0279064]
[1723949218676,0.14680001,59838.0,59837.0,0.0139064]
[1723949218881,0.14680001,59838.0,59837.0,0.0149064]
[1723949219084,0.06480001,59838.0,59837.0,0.0149064]
[1723949219311,0.06480001,59838.0,59837.0,0.0289064]
[1723949221935,0.06480001,59838.0,59837.0,0.1217064]
[1723949222516,1e-08,59838.0,59837.0,0.17219914]
[1723949222831,1e-08,59838.0,59837.0,0.1217064]
[1723949223585,0.0014661,59839.0,59837.0,0.1217064]
[1723949223586,0.00096732,59839.0,59837.0,0.1217064]
[1723949224555,0.08296732,59839.0,59837.0,0.1217064]
[1723949224957,0.0648,59838.0,59837.0,0.0149064]
[1723949225375,0.215205,59838.0,59837.0,0.0279064]
[1723949225688,0.114935,59838.0,59837.0,0.0279064]
[1723949225920,0.114935,59838.0,59837.0,0.0009064]
[1723949226156,0.114935,59838.0,59837.0,0.0149064]
[1723949226872,0.114935,59838.0,59837.0,0.0289064]
[1723949228267,0.315475,59838.0,59837.0,0.0289064]
[1723949228987,0.315475,59838.0,59837.0,0.0149064]
[1723949229234,0.315475,59838.0,59837.0,0.0009064]
[1723949229462,0.215205,59838.0,59837.0,0.0279064]
[1723949231522,0.315475,59838.0,59837.0,0.0279064]
[1723949232924,0.392399,59838.0,59837.0,0.0279064]
[1723949233566,0.392399,59838.0,59837.0,0.0029064]
[1723949234441,0.49529699,59838.0,59837.0,0.0029064]
[1723949235265,0.59556699,59838.0,59837.0,0.0029064]
[1723949235488,0.59656699,59838.0,59837.0,0.0029064]
[1723949235700,0.66685317,59838.0,59837.0,0.0029064]
[1723949235906,0.66385317,59838.0,59837.0,0.0029064]
[1723949236118,0.250685,59836.0,59835.0,0.232806]
[1723949236357,0.69353628,59836.0,59835.0,0.232806]
[1723949236566,0.760834,59836.0,59835.0,0.232806]
[1723949237943,0.761834,59836.0,59835.0,0.232806]
[1723949238577,0.764834,59836.0,59835.0,0.232806]
[1723949239118,0.764834,59836.0,59835.0,0.235806]
[1723949239559,0.761834,59836.0,59835.0,0.235806]
[1723949239765,0.756834,59836.0,59835.0,0.235806]
[1723949240368,0.757834,59836.0,59835.0,0.235806]
[1723949241093,0.759834,59836.0,59835.0,0.235806]
[1723949241218,0.80614448,59836.0,59835.0,0.235806]
[1723949241638,0.860108,59836.0,59835.0,0.235806]
[1723949242098,0.861108,59836.0,59835.0,0.235806]
[1723949242294,0.862108,59836.0,59835.0,0.235806]
[1723949242488,0.862108,59836.0,59835.0,0.232806]
[1723949242907,0.865108,59836.0,59835.0,0.232806]
[1723949243103,0.96505612,59836.0,59835.0,0.232806]
[1723949243302,0.96405612,59836.0,59835.0,0.232806]
[1723949244714,0.96905612,59836.0,59835.0,0.232806]
[1723949245541,0.96905612,59836.0,59835.0,0.2337124]
[1723949248316,1.03606212,59836.0,59835.0,0.2337124]
[1723949249895,1.03606212,59836.0,59820.0,0.51177509]
[1723949249896,0.524746,59821.0,59820.0,0.51177509]
[1723949250100,0.82281861,59821.0,59820.0,0.51177509]
[1723949250300,0.150468,59813.0,59812.0,0.0774]
[1723949250500,0.25078,59813.0,59812.0,0.0774]
[1723949250788,0.20670255,59813.0,59806.0,1.351]
[1723949250959,0.150483,59807.0,59806.0,0.0774]
[1723949251120,0.100312,59813.0,59806.0,0.0774]
[1723949251121,0.05016,59809.0,59806.0,0.0774]
[1723949251327,0.100319,59810.0,59806.0,0.0774]
[1723949251328,0.05016,59808.0,59806.0,0.0774]
[1723949251647,0.050161,59807.0,59806.0,0.0774]
[1723949252672,0.050161,59807.0,59806.0,0.0844]
[1723949252876,0.050161,59807.0,59806.0,0.0774]
[1723949253091,0.051161,59807.0,59806.0,0.0844]
[1723949253738,0.052161,59807.0,59806.0,0.0844]
[1723949253948,0.052161,59807.0,59806.0,1.358]
[1723949254160,0.152483,59807.0,59806.0,1.358]
[1723949254980,0.052161,59807.0,59806.0,1.358]
[1723949256029,0.152483,59807.0,59806.0,1.358]
[1723949257779,0.152483,59807.0,59806.0,1.3589064]
[1723949257987,0.052161,59807.0,59806.0,1.3589064]
[1723949258775,0.152483,59807.0,59806.0,1.3589064]
[1723949259584,0.052161,59807.0,59806.0,1.3589064]
[1723949259995,0.152483,59807.0,59806.0,0.0853064]
[1723949263172,0.152483,59807.0,59806.0,0.0079064]
[1723949264272,0.5528944,59807.0,59806.0,0.0079064]
[1723949264775,0.5182342,59807.0,59806.0,0.0079064]
[1723949265184,0.6185562,59807.0,59806.0,0.0079064]
[1723949265391,0.73144102,59807.0,59806.0,0.0079064]
[1723949265678,0.72944102,59807.0,59806.0,0.0009064]
[1723949265912,0.81421512,59807.0,59806.0,0.0019064]
[1723949266118,0.89351512,59807.0,59806.0,0.0009064]
[1723949266333,0.96173613,59807.0,59806.0,0.0009064]
[1723949266538,0.96073613,59807.0,59806.0,0.0009064]
[1723949266939,0.96273613,59807.0,59806.0,0.0009064]
[1723949267450,0.96073613,59807.0,59806.0,0.0009064]
[1723949267856,0.96473613,59807.0,59806.0,0.0009064]
[1723949267987,1.06505813,59807.0,59806.0,0.0009064]
[1723949268190,1.06605813,59807.0,59806.0,0.0009064]
[1723949268581,1.06805813,59807.0,59806.0,0.0009064]
[1723949268782,1.06605813,59807.0,59806.0,0.0009064]
[1723949269094,1.06205813,59807.0,59806.0,0.0009064]
[1723949269300,1.06805813,59807.0,59806.0,0.0009064]
[1723949270125,1.06205813,59807.0,59806.0,0.0009064]
[1723949270534,1.07105813,59807.0,59806.0,0.0009064]
[1723949271058,1.06205813,59807.0,59806.0,0.0009064]
[1723949271258,0.78016203,59807.0,59806.0,0.0009064]
[1723949271471,0.88096203,59807.0,59806.0,0.0009064]
[1723949271681,0.87296203,59807.0,59806.0,0.0009064]
[1723949271887,0.87596203,59807.0,59806.0,0.0009064]
[1723949272293,0.88496203,59807.0,59806.0,0.0009064]
[1723949272632,0.89296203,59807.0,59806.0,0.0009064]
[1723949272874,0.87596203,59807.0,59806.0,0.0009064]
[1723949273219,0.89996203,59807.0,59806.0,0.0009064]
[1723949274047,0.89696203,59807.0,59806.0,0.0009064]
[1723949274306,0.89796203,59807.0,59806.0,0.0009064]
[1723949275084,0.89996203,59807.0,59806.0,0.0009064]
[1723949276250,0.99315823,59807.0,59806.0,0.0009064]
[1723949276472,1.09548023,59807.0,59806.0,0.0009064]
[1723949278947,1.07148023,59807.0,59806.0,0.0009064]
[1723949279330,1.16651923,59807.0,59806.0,0.0009064]
[1723949279711,1.15251923,59807.0,59806.0,0.0009064]
[1723949279932,1.16651923,59807.0,59806.0,0.0009064]
[1723949280137,1.18051923,59807.0,59806.0,0.0009064]
[1723949280716,0.64550103,59807.0,59806.0,0.0009064]
[1723949280914,0.57846203,59807.0,59806.0,0.0009064]
[1723949281506,0.56446203,59807.0,59806.0,0.0009064]
[1723949281744,0.55046203,59807.0,59806.0,0.0009064]
[1723949281874,0.54857721,59807.0,59806.0,0.0009064]
[1723949282074,0.53457721,59807.0,59806.0,0.0009064]
[1723949282277,0.52657721,59807.0,59806.0,0.0792064]
[1723949282503,0.54057721,59807.0,59806.0,0.0792064]
[1723949282682,0.64057721,59807.0,59806.0,0.0792064]
[1723949282879,0.62657721,59807.0,59806.0,0.0792064]
[1723949283182,0.63257721,59807.0,59806.0,0.0792064]
[1723949283383,0.63957721,59807.0,59806.0,0.0792064]
[1723949286446,0.53925521,59807.0,59806.0,0.0792064]
[1723949286651,0.33893321,59807.0,59806.0,0.1422064]
[1723949286887,0.43925521,59807.0,59806.0,0.1468866]
[1723949287287,0.3710342,59807.0,59806.0,0.1468866]
[1723949287714,0.43927784,59807.0,59806.0,0.1468866]
[1723949287996,0.2647122,59807.0,59806.0,0.1468866]
[1723949288195,0.2637122,59807.0,59806.0,0.1468866]
[1723949288417,0.33894538,59807.0,59806.0,0.1468866]
[1723949288617,0.33294538,59807.0,59806.0,0.1468866]
[1723949289061,0.32594538,59807.0,59806.0,0.1468866]
[1723949289263,0.42626738,59807.0,59806.0,0.1468866]
[1723949289478,0.42626738,59807.0,59806.0,0.1488866]
[1723949291127,0.42626738,59807.0,59806.0,0.1468866]
[1723949291349,0.32594538,59807.0,59806.0,0.1478866]
[1723949291557,0.32594538,59807.0,59806.0,0.16267526]
[1723949291558,0.11839418,59807.0,59806.0,0.16267526]
[1723949291772,0.11939418,59807.0,59806.0,0.16267526]
[1723949291978,0.11939418,59807.0,59806.0,0.1478866]
[1723949292608,0.11839418,59807.0,59806.0,0.1468866]
[1723949293017,0.11839418,59807.0,59806.0,0.1488866]
[1723949294283,0.21871618,59807.0,59806.0,0.1488866]
[1723949294734,0.21871618,59807.0,59806.0,0.1468866]
[1723949295178,0.21954218,59807.0,59806.0,0.1488866]
[1723949297983,0.21954218,59807.0,59806.0,0.1468866]
[1723949298156,0.21954218,59807.0,59806.0,0.1478866]
[1723949298563,0.22054218,59807.0,59806.0,0.1478866]
[1723949299583,0.21954218,59807.0,59806.0,0.1478866]
[1723949300502,0.42809338,59807.0,59806.0,0.0848866]
[1723949300710,0.52841538,59807.0,59806.0,0.0055866]
[1723949300934,0.52841538,59807.0,59806.0,0.0009064]
[1723949301272,0.52841538,59807.0,59806.0,0.0019064]
[1723949301478,0.52841538,59807.0,59806.0,0.0009064]
[1723949301814,0.52741538,59807.0,59806.0,0.0009064]
[1723949302240,0.52941538,59807.0,59806.0,0.0009064]
[1723949304661,0.53965175,59807.0,59806.0,0.0009064]
[1723949305707,0.53765175,59807.0,59806.0,0.0009064]
[1723949305936,0.63065175,59807.0,59806.0,0.0009064]
[1723949306113,0.73065175,59807.0,59806.0,0.0009064]
[1723949306518,0.73265175,59807.0,59806.0,0.0009064]
[1723949309205,0.689946,59787.0,59784.0,0.0009875]
[1723949309413,1.06016251,59787.0,59784.0,0.51276259]
[1723949309584,0.99152797,59787.0,59784.0,0.0009875]
[1723949309787,0.150538,59785.0,59784.0,0.0009875]
[1723949309997,0.42943587,59785.0,59784.0,0.0009875]
[1723949310222,0.42943587,59785.0,59784.0,0.0789875]
[1723949311947,0.44343587,59785.0,59784.0,0.0789875]
[1723949312552,0.43543587,59785.0,59784.0,0.0789875]
[1723949312806,0.43543587,59785.0,59784.0,0.136977]
[1723949312807,0.063179,59785.0,59784.0,0.136977]
[1723949313049,0.063179,59785.0,59784.0,0.0789875]
[1723949313792,0.013,59785.0,59784.0,0.0789875]
[1723949313970,0.063179,59785.0,59784.0,0.0789875]
[1723949314477,0.013,59785.0,59784.0,0.0789875]
[1723949314632,0.007,59785.0,59784.0,0.0789875]
[1723949314832,0.10035,59791.0,59785.0,0.0601]
[1723949315033,0.050177,59788.0,59786.0,0.078]
[1723949316671,0.150534,59787.0,59786.0,0.078]
[1723949318695,0.150534,59787.0,59786.0,0.079]
[1723949318880,0.150534,59787.0,59786.0,0.078]
[1723949319299,0.151534,59787.0,59786.0,0.079]
[1723949320176,0.150534,59787.0,59786.0,0.079]
[1723949320933,0.150534,59787.0,59786.0,0.078]
[1723949321534,0.151534,59787.0,59786.0,0.079]
[1723949321920,0.150534,59787.0,59786.0,0.078]
[1723949322341,0.151534,59787.0,59786.0,0.079]
[1723949322516,0.151534,59787.0,59786.0,0.078]
[1723949322946,0.151534,59787.0,59786.0,0.079]
[1723949325452,0.151534,59787.0,59786.0,0.07586043]
[1723949326519,0.001,59787.0,59786.0,0.13964597]
[1723949326716,0.001,59787.0,59786.0,0.19974597]
[1723949328618,0.001,59787.0,59786.0,0.13596043]
[1723949328821,0.001,59787.0,59786.0,0.53596043]
[1723949330312,0.001,59787.0,59786.0,0.53686903]
[1723949330512,0.001826,59787.0,59786.0,0.53686903]
[1723949330715,0.001826,59787.0,59786.0,0.58704703]
[1723949330915,0.001826,59787.0,59786.0,0.70597743]
[1723949331120,0.001826,59787.0,59786.0,0.80633443]
[1723949331360,0.000826,59787.0,59786.0,0.80633443]